fUSD/lending_fUSD_20260606
["ID","MTS","AMOUNT","RATE_DAILY","PERIOD"]
[424309729,1780761049000,-161.8511874,0.00027913,2]
[424309732,1780761049000,-158.09150112,0.00027913,2]
[424309800,1780761050000,-150.0,0.00028479,7]
[424309785,1780761050000,-1274.0,0.00028336,2]
[424309791,1780761050000,-150.0,0.00028354,7]
[424309784,1780761050000,-1227.0,0.00028336,2]
[424309787,1780761050000,-6073.0,0.00028336,2]
[424309789,1780761050000,-150.0,0.00028341,7]
[424309792,1780761050000,-150.0,0.00028386,7]
[424309788,1780761050000,-3642.0,0.00028336,2]
[424309794,1780761050000,-150.0,0.0002839,7]
[424309795,1780761050000,-150.0,0.00028417,7]
[424309793,1780761050000,-150.0,0.00028387,7]
[424309811,1780761050000,-150.0,0.00028573,7]
[424309818,1780761050000,-150.0,0.00028625,7]
[424309804,1780761050000,-150.0,0.00028511,7]
[424309798,1780761050000,-1776.30922209,0.00028472,2]
[424309809,1780761050000,-150.0,0.00028563,7]
[424309786,1780761050000,-150.0,0.00028336,2]
[424309810,1780761050000,-150.0,0.00028563,7]
[424309807,1780761050000,-150.0,0.00028542,7]
[424309813,1780761050000,-150.0,0.00028598,7]
[424309797,1780761050000,-150.0,0.00028448,7]
[424309805,1780761050000,-14841.77,0.00028513,7]
[424309806,1780761050000,-150.0,0.00028531,7]
[424309808,1780761050000,-150.0,0.00028563,7]
[424309814,1780761050000,-4252.59,0.000286,7]
[424309790,1780761050000,-150.0,0.00028343,7]
[424309779,1780761050000,-591.13823814,0.000283,2]
[424309767,1780761050000,-150.0,0.00028202,7]
[424309796,1780761050000,-150.0,0.00028437,7]
[424309760,1780761050000,-150.0,0.00028136,7]
[424309774,1780761050000,-150.0,0.00028261,7]
[424309778,1780761050000,-150.0,0.00028296,7]
[424309763,1780761050000,-150.0,0.00028176,7]
[424309771,1780761050000,-150.0,0.00028229,7]
[424309780,1780761050000,-2888.24,0.000283,7]
[424309761,1780761050000,-150.0,0.00028155,7]
[424309764,1780761050000,-150.0,0.00028198,7]
[424309777,1780761050000,-150.0,0.00028292,7]
[424309768,1780761050000,-741.0,0.00028205,3]
[424309775,1780761050000,-4427.4,0.00028267,2]
[424309769,1780761050000,-150.0,0.00028208,7]
[424309773,1780761050000,-150.0,0.00028249,7]
[424309783,1780761050000,-3554.0,0.00028336,2]
[424309758,1780761050000,-150.0,0.00028107,7]
[424309759,1780761050000,-151.0,0.00028112,4]
[424309770,1780761050000,-150.0,0.00028223,7]
[424309781,1780761050000,-150.0,0.00028323,7]
[424309762,1780761050000,-150.0,0.00028167,7]
[424309757,1780761050000,-150.0,0.00028105,7]
[424309772,1780761050000,-500.0,0.00028247,2]
[424309765,1780761050000,-1329.75,0.000282,14]
[424309766,1780761050000,-4252.59,0.000282,7]
[424309776,1780761050000,-150.0,0.00028281,7]
[424309782,1780761050000,-1358.0,0.00028336,2]
[424309801,1780761050000,-150.0,0.00028484,7]
[424309817,1780761050000,-150.0,0.00028607,7]
[424309854,1780761050000,-3891.0,0.00028797,7]
[424309835,1780761050000,-1095.76,0.00028693,30]
[424309853,1780761050000,-150.0,0.00028792,7]
[424309840,1780761050000,-1095.76,0.00028725,2]
[424309842,1780761050000,-150.0,0.00028729,7]
[424309841,1780761050000,-1110.13,0.00028725,2]
[424309851,1780761050000,-1095.76,0.00028788,30]
[424309855,1780761050000,-4266.63,0.00028797,7]
[424309852,1780761050000,-1110.13,0.00028788,30]
[424309849,1780761050000,-916.90357633,0.00028767,2]
[424309845,1780761050000,-1095.76,0.00028756,7]
[424309844,1780761050000,-150.0,0.0002874,7]
[424309846,1780761050000,-1110.13,0.00028756,7]
[424309858,1780761050000,-4164.25,0.00028797,7]
[424309857,1780761050000,-3813.48,0.00028797,7]
[424309856,1780761050000,-2561.51,0.00028797,7]
[424309860,1780761050000,-1329.75,0.000288,14]
[424309863,1780761050000,-1095.76,0.0002882,2]
[424309864,1780761050000,-200.0,0.0002882,2]
[424309862,1780761050000,-150.0,0.00028814,7]
[424309861,1780761050000,-150.0,0.00028809,7]
[424309866,1780761050000,-1933.13854938,0.00028822,5]
[424309865,1780761050000,-1110.13,0.0002882,2]
[424309799,1780761050000,-150.0,0.00028474,7]
[424309859,1780761050000,-2696.17,0.00028797,7]
[424309838,1780761050000,-150.0,0.00028703,7]
[424309848,1780761050000,-150.0,0.00028767,7]
[424309839,1780761050000,-150.0,0.00028719,7]
[424309802,1780761050000,-150.0,0.00028492,7]
[424309847,1780761050000,-150.0,0.0002876,7]
[424309812,1780761050000,-150.0,0.00028578,7]
[424309803,1780761050000,-168.33,0.00028493,2]
[424309815,1780761050000,-2888.24,0.000286,7]
[424309816,1780761050000,-150.0,0.00028604,7]
[424309819,1780761050000,-3891.0,0.0002863,30]
[424309826,1780761050000,-1110.13,0.0002863,2]
[424309823,1780761050000,-3813.48,0.0002863,30]
[424309824,1780761050000,-4164.25,0.0002863,30]
[424309827,1780761050000,-150.0,0.00028635,7]
[424309821,1780761050000,-4266.63,0.0002863,30]
[424309831,1780761050000,-150.0,0.00028667,7]
[424309825,1780761050000,-2696.17,0.0002863,30]
[424309830,1780761050000,-1110.13,0.00028661,7]
[424309836,1780761050000,-1110.13,0.00028693,30]
[424309850,1780761050000,-217.00224169,0.00028767,2]
[424309837,1780761050000,-150.0,0.00028698,7]
[424309832,1780761050000,-150.0,0.00028672,7]
[424309834,1780761050000,-291.0,0.00028684,2]
[424309843,1780761050000,-741.0,0.00028739,3]
[424309820,1780761050000,-1095.76,0.0002863,2]
[424309829,1780761050000,-1095.76,0.00028661,7]
[424309828,1780761050000,-495.39674861,0.0002864,2]
[424309822,1780761050000,-2561.51,0.0002863,30]
[424309833,1780761050000,-150.0,0.00028684,2]
[424309896,1780761051000,-1000.0,0.00028826,2]
[424309868,1780761051000,-731.42,0.00028825,30]
[424309902,1780761051000,-1000.0,0.00028826,2]
[424309908,1780761051000,-1000.0,0.00028826,2]
[424309897,1780761051000,-1000.0,0.00028826,2]
[424309871,1780761051000,-731.42,0.00028825,30]
[424309886,1780761051000,-2000.0,0.00028826,2]
[424309869,1780761051000,-731.42,0.00028825,30]
[424309909,1780761051000,-1000.0,0.00028826,2]
[424309912,1780761051000,-1000.0,0.00028826,2]
[424309901,1780761051000,-1000.0,0.00028826,2]
[424309892,1780761051000,-2000.0,0.00028826,2]
[424309921,1780761051000,-1000.0,0.00028826,2]
[424309922,1780761051000,-1000.0,0.00028826,2]
[424309903,1780761051000,-1000.0,0.00028826,2]
[424309919,1780761051000,-1000.0,0.00028826,2]
[424309914,1780761051000,-1000.0,0.00028826,2]
[424309872,1780761051000,-731.63133285,0.00028825,30]
[424309880,1780761051000,-2000.0,0.00028826,2]
[424309890,1780761051000,-150.0,0.00028826,2]
[424309894,1780761051000,-2000.0,0.00028826,2]
[424309915,1780761051000,-1000.0,0.00028826,2]
[424309891,1780761051000,-2000.0,0.00028826,2]
[424309910,1780761051000,-1000.0,0.00028826,2]
[424309934,1780761051000,-152.0,0.00028892,5]
[424309904,1780761051000,-1000.0,0.00028826,2]
[424309900,1780761051000,-1000.0,0.00028826,2]
[424309895,1780761051000,-1117.79,0.00028826,2]
[424309905,1780761051000,-1000.0,0.00028826,2]
[424309877,1780761051000,-2000.0,0.00028826,2]
[424309940,1780761051000,-1110.13,0.00028915,2]
[424309884,1780761051000,-2000.0,0.00028826,2]
[424309918,1780761051000,-1000.0,0.00028826,2]
[424309920,1780761051000,-1000.0,0.00028826,2]
[424309913,1780761051000,-1000.0,0.00028826,2]
[424309870,1780761051000,-731.42,0.00028825,30]
[424309875,1780761051000,-2000.0,0.00028826,2]
[424309873,1780761051000,-1016.99,0.00028825,7]
[424309893,1780761051000,-2000.0,0.00028826,2]
[424309887,1780761051000,-2000.0,0.00028826,2]
[424309874,1780761051000,-2000.0,0.00028826,2]
[424309898,1780761051000,-1000.0,0.00028826,2]
[424309888,1780761051000,-2000.0,0.00028826,2]
[424309881,1780761051000,-2000.0,0.00028826,2]
[424309916,1780761051000,-1000.0,0.00028826,2]
[424309883,1780761051000,-2000.0,0.00028826,2]
[424309907,1780761051000,-1000.0,0.00028826,2]
[424309878,1780761051000,-2000.0,0.00028826,2]
[424309879,1780761051000,-2000.0,0.00028826,2]
[424309917,1780761051000,-1000.0,0.00028826,2]
[424309899,1780761051000,-1000.0,0.00028826,2]
[424309906,1780761051000,-1000.0,0.00028826,2]
[424309889,1780761051000,-1999.3,0.00028826,2]
[424309876,1780761051000,-2000.0,0.00028826,2]
[424309911,1780761051000,-1000.0,0.00028826,2]
[424309867,1780761051000,-150.0,0.00028823,7]
[424309885,1780761051000,-2000.0,0.00028826,2]
[424309953,1780761051000,-164.68866913,0.00028971,2]
[424309882,1780761051000,-2000.0,0.00028826,2]
[424309927,1780761051000,-150.0,0.00028854,7]
[424309931,1780761051000,-1095.76,0.00028883,30]
[424309946,1780761051000,-3891.0,0.00028964,2]
[424309956,1780761051000,-1095.76,0.00028979,30]
[424309944,1780761051000,-150.0,0.00028948,7]
[424309959,1780761051000,-200.0,0.00029,2]
[424309965,1780761051000,-809.81,0.00029,2]
[424309930,1780761051000,-150.0,0.00028873,7]
[424309935,1780761051000,-2888.24,0.000289,7]
[424309942,1780761051000,-1095.76,0.00028947,7]
[424309954,1780761051000,-194.000028,0.00028971,2]
[424309975,1780761051000,-1395.54,0.00029,2]
[424309976,1780761051000,-1000.0,0.00029,2]
[424309978,1780761051000,-1000.0,0.00029,2]
[424309985,1780761051000,-1000.0,0.00029,2]
[424309971,1780761051000,-2000.0,0.00029,2]
[424309972,1780761051000,-2000.0,0.00029,2]
[424309973,1780761051000,-2000.0,0.00029,2]
[424309980,1780761051000,-1000.0,0.00029,2]
[424309984,1780761051000,-1000.0,0.00029,2]
[424309979,1780761051000,-1000.0,0.00029,2]
[424309977,1780761051000,-1000.0,0.00029,2]
[424309970,1780761051000,-2000.0,0.00029,2]
[424309983,1780761051000,-1000.0,0.00029,2]
[424309981,1780761051000,-1000.0,0.00029,2]
[424309969,1780761051000,-2000.0,0.00029,2]
[424309982,1780761051000,-1000.0,0.00029,2]
[424309962,1780761051000,-200.0,0.00029,2]
[424309925,1780761051000,-1095.76,0.00028852,7]
[424309945,1780761051000,-150.0,0.00028955,7]
[424309968,1780761051000,-2000.0,0.00029,2]
[424309964,1780761051000,-265.75,0.00029,2]
[424309936,1780761051000,-150.0,0.00028903,7]
[424309929,1780761051000,-150.0,0.00028861,7]
[424309948,1780761051000,-2561.51,0.00028964,2]
[424309960,1780761051000,-533.06212738,0.00029,2]
[424309955,1780761051000,-150.0,0.00028979,7]
[424309961,1780761051000,-200.0,0.00029,2]
[424309963,1780761051000,-200.0,0.00029,2]
[424309933,1780761051000,-150.0,0.00028885,7]
[424309928,1780761051000,-150.0,0.00028855,2]
[424309974,1780761051000,-1799.08,0.00029,2]
[424309966,1780761051000,-607.0,0.00029,7]
[424309943,1780761051000,-1110.13,0.00028947,7]
[424309938,1780761051000,-150.0,0.00028914,7]
[424309957,1780761051000,-1110.13,0.00028979,30]
[424309951,1780761051000,-2696.17,0.00028964,2]
[424309937,1780761051000,-150.0,0.00028908,7]
[424309952,1780761051000,-179.97120458,0.00028971,2]
[424309947,1780761051000,-4266.63,0.00028964,2]
[424309939,1780761051000,-1095.76,0.00028915,2]
[424309926,1780761051000,-1110.13,0.00028852,7]
[424309950,1780761051000,-4164.25,0.00028964,2]
[424309967,1780761051000,-2000.0,0.00029,2]
[424309924,1780761051000,-470.36,0.00028826,2]
[424309923,1780761051000,-1000.0,0.00028826,2]
[424309941,1780761051000,-150.0,0.00028916,7]
[424309958,1780761051000,-2000.0,0.00029,2]
[424309932,1780761051000,-1110.13,0.00028883,30]
[424309949,1780761051000,-3813.48,0.00028964,2]
[424310027,1780761052000,-307.70793271,0.00029027,2]
[424309997,1780761052000,-157.0,0.00029,4]
[424309998,1780761052000,-157.0,0.00029,4]
[424310025,1780761052000,-368.19114833,0.00029027,2]
[424310023,1780761052000,-377.12580138,0.00029027,2]
[424310020,1780761052000,-211.36172796,0.00029027,2]
[424310028,1780761052000,-335.96892356,0.00029027,2]
[424310017,1780761052000,-1842.0326633,0.0002902,2]
[424310019,1780761052000,-301.26545663,0.00029027,2]
[424310014,1780761052000,-1110.13,0.0002901,2]
[424310022,1780761052000,-153.63836031,0.00029027,2]
[424310032,1780761052000,-420.26207897,0.00029027,2]
[424310024,1780761052000,-334.47897504,0.00029027,2]
[424310026,1780761052000,-311.23127247,0.00029027,2]
[424310021,1780761052000,-152.72459537,0.00029027,2]
[424310029,1780761052000,-367.34836471,0.00029027,2]
[424310039,1780761052000,-175.30836802,0.00029051,2]
[424310041,1780761052000,-315.71877693,0.00029051,2]
[424310052,1780761052000,-440.97629599,0.00029058,2]
[424310033,1780761052000,-305.52751016,0.00029027,2]
[424310036,1780761052000,-1110.13,0.00029042,7]
[424309996,1780761052000,-157.0,0.00029,4]
[424310031,1780761052000,-160.31740056,0.00029027,2]
[424310018,1780761052000,-327.71880563,0.00029027,2]
[424309999,1780761052000,-157.0,0.00029,4]
[424310005,1780761052000,-158.0,0.00029,4]
[424310015,1780761052000,-150.0,0.0002901,7]
[424310040,1780761052000,-300.07045574,0.00029051,2]
[424310003,1780761052000,-158.0,0.00029,4]
[424310000,1780761052000,-165.0,0.00029,4]
[424310010,1780761052000,-158.0,0.00029,4]
[424309986,1780761052000,-1000.0,0.00029,2]
[424310011,1780761052000,-150.0,0.00029002,7]
[424310013,1780761052000,-1095.76,0.0002901,2]
[424310012,1780761052000,-150.0,0.00029006,7]
[424309995,1780761052000,-157.0,0.00029,4]
[424310007,1780761052000,-158.0,0.00029,4]
[424309991,1780761052000,-220.0,0.00029,7]
[424309994,1780761052000,-157.0,0.00029,4]
[424310008,1780761052000,-158.0,0.00029,4]
[424310009,1780761052000,-158.0,0.00029,4]
[424309992,1780761052000,-215.80795776,0.00029,30]
[424310001,1780761052000,-158.0,0.00029,4]
[424310016,1780761052000,-150.0,0.0002902,7]
[424309990,1780761052000,-527.14288805,0.00029,2]
[424310006,1780761052000,-158.0,0.00029,4]
[424309993,1780761052000,-159.0,0.00029,4]
[424309989,1780761052000,-4252.59,0.00029,7]
[424309987,1780761052000,-862.65,0.00029,2]
[424310002,1780761052000,-158.0,0.00029,4]
[424309988,1780761052000,-10000.0,0.00029,2]
[424310042,1780761052000,-411.79508761,0.00029051,2]
[424310004,1780761052000,-158.0,0.00029,4]
[424310035,1780761052000,-1095.76,0.00029042,7]
[424310072,1780761052000,-273.15294386,0.00029132,2]
[424310066,1780761052000,-1001.38,0.00029108,7]
[424310076,1780761052000,-3813.48,0.00029132,30]
[424310088,1780761052000,-1110.13,0.00029169,30]
[424310069,1780761052000,-150.0,0.00029125,7]
[424310079,1780761052000,-1372.0,0.00029132,2]
[424310085,1780761052000,-150.0,0.00029143,7]
[424310086,1780761052000,-150.0,0.00029166,7]
[424310082,1780761052000,-1095.76,0.00029137,7]
[424310067,1780761052000,-1015.83,0.00029108,7]
[424310070,1780761052000,-300.0,0.0002913,7]
[424310074,1780761052000,-4266.63,0.00029132,30]
[424310080,1780761052000,-1358.0,0.00029132,2]
[424310073,1780761052000,-3891.0,0.00029132,30]
[424310078,1780761052000,-2696.17,0.00029132,30]
[424310077,1780761052000,-4164.25,0.00029132,30]
[424310087,1780761052000,-1095.76,0.00029169,30]
[424310068,1780761052000,-151.0,0.00029112,4]
[424310075,1780761052000,-2561.51,0.00029132,30]
[424310091,1780761052000,-2888.24,0.000292,7]
[424310065,1780761052000,-932.12,0.00029108,7]
[424310084,1780761052000,-150.0,0.00029139,7]
[424310090,1780761052000,-150.0,0.00029198,7]
[424310083,1780761052000,-1110.13,0.00029137,7]
[424310081,1780761052000,-150.0,0.00029135,7]
[424310089,1780761052000,-150.0,0.0002919,7]
[424310063,1780761052000,-1095.76,0.00029105,2]
[424310071,1780761052000,-400.0,0.0002913,7]
[424310034,1780761052000,-150.0,0.00029041,7]
[424310048,1780761052000,-443.16976228,0.00029051,2]
[424310053,1780761052000,-309.22924785,0.00029058,2]
[424310049,1780761052000,-308.25757981,0.00029051,2]
[424310047,1780761052000,-370.82796445,0.00029051,2]
[424310045,1780761052000,-305.95367093,0.00029051,2]
[424310051,1780761052000,-326.38916675,0.00029051,2]
[424310037,1780761052000,-150.0,0.00029049,7]
[424310030,1780761052000,-238.37845884,0.00029027,2]
[424310044,1780761052000,-446.90711869,0.00029051,2]
[424310046,1780761052000,-406.72439825,0.00029051,2]
[424310050,1780761052000,-351.17694619,0.00029051,2]
[424310043,1780761052000,-232.63263453,0.00029051,2]
[424310038,1780761052000,-418.0085334,0.00029051,2]
[424310058,1780761052000,-1095.76,0.00029074,30]
[424310057,1780761052000,-150.0,0.00029073,7]
[424310064,1780761052000,-1110.13,0.00029105,2]
[424310062,1780761052000,-150.0,0.00029104,7]
[424310061,1780761052000,-169.8431375,0.00029103,2]
[424310060,1780761052000,-150.0,0.00029096,7]
[424310055,1780761052000,-69674.51116356,0.00029069,2]
[424310056,1780761052000,-150.0,0.00029073,7]
[424310054,1780761052000,-241.22298512,0.00029058,2]
[424310059,1780761052000,-1110.13,0.00029074,30]
[424310122,1780761053000,-310.3674778,0.00029226,2]
[424310118,1780761053000,-189.56678385,0.00029226,2]
[424310121,1780761053000,-215.78930977,0.00029226,2]
[424310125,1780761053000,-237.62669559,0.00029226,2]
[424310124,1780761053000,-367.12874517,0.00029226,2]
[424310123,1780761053000,-190.99720698,0.00029226,2]
[424310120,1780761053000,-323.70237479,0.00029226,2]
[424310126,1780761053000,-316.18300225,0.00029226,2]
[424310133,1780761053000,-1110.16,0.00029232,7]
[424310130,1780761053000,-150.0,0.00029229,7]
[424310132,1780761053000,-1095.82,0.00029232,7]
[424310128,1780761053000,-307.83310308,0.00029226,2]
[424310135,1780761053000,-150.0,0.00029243,7]
[424310119,1780761053000,-166.00801039,0.00029226,2]
[424310129,1780761053000,-307.78745423,0.00029226,2]
[424310131,1780761053000,-150.0,0.00029231,7]
[424310136,1780761053000,-150.0,0.0002926,7]
[424310134,1780761053000,-150.0,0.00029237,7]
[424310146,1780761053000,-3813.48,0.00029299,7]
[424310137,1780761053000,-150.0,0.00029272,7]
[424310138,1780761053000,-741.0,0.00029273,4]
[424310127,1780761053000,-397.99171732,0.00029226,2]
[424310117,1780761053000,-247.60686755,0.00029226,2]
[424310114,1780761053000,-175.78139797,0.00029226,2]
[424310116,1780761053000,-361.60642446,0.00029226,2]
[424310139,1780761053000,-150.0,0.00029284,7]
[424310093,1780761053000,-1110.13,0.00029201,2]
[424310092,1780761053000,-1095.76,0.00029201,2]
[424310096,1780761053000,-358.9257043,0.00029226,2]
[424310103,1780761053000,-850.10696836,0.00029226,2]
[424310097,1780761053000,-334.08028979,0.00029226,2]
[424310099,1780761053000,-348.67548014,0.00029226,2]
[424310094,1780761053000,-325.23761911,0.00029226,2]
[424310101,1780761053000,-745.13185887,0.00029226,2]
[424310098,1780761053000,-309.64776783,0.00029226,2]
[424310115,1780761053000,-402.78536409,0.00029226,2]
[424310100,1780761053000,-792.71253234,0.00029226,2]
[424310102,1780761053000,-155.58427189,0.00029226,2]
[424310109,1780761053000,-301.55837379,0.00029226,2]
[424310112,1780761053000,-160.62886321,0.00029226,2]
[424310104,1780761053000,-313.36195886,0.00029226,2]
[424310111,1780761053000,-333.87196225,0.00029226,2]
[424310113,1780761053000,-237.93976967,0.00029226,2]
[424310110,1780761053000,-332.99933529,0.00029226,2]
[424310106,1780761053000,-676.97515285,0.00029226,2]
[424310107,1780761053000,-324.41947687,0.00029226,2]
[424310105,1780761053000,-329.71723287,0.00029226,2]
[424310095,1780761053000,-307.55343064,0.00029226,2]
[424310108,1780761053000,-447.75548336,0.00029226,2]
[424310140,1780761053000,-150.0,0.00029291,7]
[424310143,1780761053000,-3891.0,0.00029299,7]
[424310170,1780761053000,-150.0,0.00029416,7]
[424310178,1780761053000,-873.0,0.00029452,30]
[424310173,1780761053000,-150.0,0.00029447,7]
[424310171,1780761053000,-150.0,0.00029426,7]
[424310174,1780761053000,-404.0,0.00029452,30]
[424310177,1780761053000,-404.0,0.00029452,30]
[424310176,1780761053000,-2242.0,0.00029452,30]
[424310175,1780761053000,-1300.7,0.00029452,2]
[424310179,1780761053000,-244.0,0.00029452,30]
[424310180,1780761053000,-150.0,0.00029473,7]
[424310172,1780761053000,-150.0,0.00029442,7]
[424310190,1780761053000,-1910.18787185,0.00029568,2]
[424310183,1780761053000,-150.0,0.0002951,7]
[424310186,1780761053000,-150.0,0.00029538,7]
[424310184,1780761053000,-150.0,0.0002952,7]
[424310181,1780761053000,-150.0,0.00029479,7]
[424310185,1780761053000,-150.0,0.00029534,2]
[424310188,1780761053000,-150.0,0.00029547,7]
[424310189,1780761053000,-150.0,0.00029567,7]
[424310192,1780761053000,-150.0,0.00029583,7]
[424310191,1780761053000,-150.0,0.00029572,7]
[424310142,1780761053000,-3694.66,0.00029299,7]
[424310187,1780761053000,-150.0,0.00029541,7]
[424310164,1780761053000,-4082.0,0.00029365,30]
[424310182,1780761053000,-1422.69,0.000295,7]
[424310163,1780761053000,-585.0,0.00029365,30]
[424310145,1780761053000,-2561.51,0.00029299,7]
[424310162,1780761053000,-948.0,0.00029365,30]
[424310141,1780761053000,-1148.94240846,0.00029299,15]
[424310144,1780761053000,-4266.63,0.00029299,7]
[424310147,1780761053000,-4164.25,0.00029299,7]
[424310151,1780761053000,-179.97120458,0.00029319,2]
[424310150,1780761053000,-150.0,0.00029315,15]
[424310148,1780761053000,-2696.17,0.00029299,7]
[424310156,1780761053000,-150.0,0.00029354,7]
[424310152,1780761053000,-150.0,0.00029322,7]
[424310155,1780761053000,-150.0,0.00029336,7]
[424310157,1780761053000,-936.0,0.00029361,30]
[424310149,1780761053000,-1329.75,0.000293,14]
[424310153,1780761053000,-206.13905836,0.0002933,7]
[424310165,1780761053000,-679.0,0.00029365,30]
[424310161,1780761053000,-4110.0,0.00029361,30]
[424310158,1780761053000,-1092.0,0.00029361,30]
[424310169,1780761053000,-150.0,0.00029405,7]
[424310160,1780761053000,-2972.0,0.00029361,30]
[424310166,1780761053000,-150.0,0.00029379,7]
[424310168,1780761053000,-4252.59,0.000294,7]
[424310159,1780761053000,-675.0,0.00029361,30]
[424310154,1780761053000,-150.0,0.00029332,7]
[424310167,1780761053000,-150.0,0.00029385,7]
[424310228,1780761054000,-1098.0,0.00029589,14]
[424310219,1780761054000,-1098.0,0.00029589,14]
[424310220,1780761054000,-1098.0,0.00029589,14]
[424310221,1780761054000,-1098.0,0.00029589,14]
[424310224,1780761054000,-1098.0,0.00029589,14]
[424310226,1780761054000,-1098.0,0.00029589,14]
[424310227,1780761054000,-1098.0,0.00029589,14]
[424310233,1780761054000,-1098.0,0.00029589,14]
[424310229,1780761054000,-1098.0,0.00029589,14]
[424310225,1780761054000,-1098.0,0.00029589,14]
[424310230,1780761054000,-1098.0,0.00029589,14]
[424310231,1780761054000,-1098.0,0.00029589,14]
[424310245,1780761054000,-500.0,0.00029589,14]
[424310232,1780761054000,-1098.0,0.00029589,14]
[424310236,1780761054000,-1098.0,0.00029589,14]
[424310237,1780761054000,-500.0,0.00029589,14]
[424310238,1780761054000,-500.0,0.00029589,14]
[424310239,1780761054000,-500.0,0.00029589,14]
[424310235,1780761054000,-1098.0,0.00029589,14]
[424310241,1780761054000,-1098.0,0.00029589,14]
[424310240,1780761054000,-500.0,0.00029589,14]
[424310242,1780761054000,-500.0,0.00029589,14]
[424310244,1780761054000,-500.0,0.00029589,14]
[424310218,1780761054000,-587.36410633,0.00029589,14]
[424310234,1780761054000,-1098.0,0.00029589,14]
[424310216,1780761054000,-565.0,0.00029589,14]
[424310200,1780761054000,-565.0,0.00029589,14]
[424310215,1780761054000,-565.0,0.00029589,14]
[424310243,1780761054000,-500.0,0.00029589,14]
[424310201,1780761054000,-565.0,0.00029589,14]
[424310193,1780761054000,-150.0,0.00029583,7]
[424310194,1780761054000,-150.0,0.00029583,7]
[424310195,1780761054000,-565.0,0.00029589,14]
[424310197,1780761054000,-565.0,0.00029589,14]
[424310196,1780761054000,-565.0,0.00029589,14]
[424310198,1780761054000,-565.0,0.00029589,14]
[424310199,1780761054000,-565.0,0.00029589,14]
[424310202,1780761054000,-565.0,0.00029589,14]
[424310204,1780761054000,-565.0,0.00029589,14]
[424310217,1780761054000,-565.0,0.00029589,14]
[424310206,1780761054000,-565.0,0.00029589,14]
[424310209,1780761054000,-565.0,0.00029589,14]
[424310207,1780761054000,-565.0,0.00029589,14]
[424310203,1780761054000,-565.0,0.00029589,14]
[424310208,1780761054000,-565.0,0.00029589,14]
[424310210,1780761054000,-565.0,0.00029589,14]
[424310211,1780761054000,-565.0,0.00029589,14]
[424310212,1780761054000,-565.0,0.00029589,14]
[424310222,1780761054000,-1098.0,0.00029589,14]
[424310223,1780761054000,-1098.0,0.00029589,14]
[424310213,1780761054000,-565.0,0.00029589,14]
[424310214,1780761054000,-565.0,0.00029589,14]
[424310205,1780761054000,-565.0,0.00029589,14]
[424310246,1780761054000,-500.0,0.00029589,14]
[424310255,1780761054000,-1098.0,0.00029589,14]
[424310248,1780761054000,-500.0,0.00029589,14]
[424310280,1780761054000,-515.0,0.00029589,14]
[424310281,1780761054000,-500.0,0.00029589,14]
[424310278,1780761054000,-515.0,0.00029589,14]
[424310279,1780761054000,-1244.0,0.00029589,14]
[424310282,1780761054000,-1244.0,0.00029589,14]
[424310283,1780761054000,-515.0,0.00029589,14]